Cogmind - Beta 13 @@@ ROGUE MODE // 2024.05.24 @ 14:18:12 Player: satan5 Result: Destroyed by S-27 Virus with Autogun Performance ------------- Evolutions (5) 2500 Regions Visited (17) 3400 Robots Destroyed (127) 635 Value Destroyed (3460) 3460 Prototype IDs (21) 420 Alien Tech Used (0) 0 Bonus (624) 624 TOTAL SCORE: 11039 Bonus ------- High Alert Combat Kills 46 Follower Combat Kills 131 Met Data Miner 300 Met Imprinter 300 Friendly Fire -153 Cogmind --------- Core Integrity 0/1000 Matter 161/300 Energy 100/100 System Corruption 6% Temperature Cool (0) Movement Core (50) Location -5/Factory Parts ------- > --- POWER (1) -------- (None) > --- PROPULSION (6) --- (None) > --- UTILITY (8) ------ Targeting Computer System Shield > --- WEAPON (2) ------- (None) > --- INVENTORY (5) ---- Experimental Heat Sink Large Storage Unit Heart of Steel Peak State ------------ > --- POWER ------------ Enhanced Nuclear Core > --- PROPULSION ------- Carbon-fiber Leg Flexi-carbon Leg Combat Airjet > --- UTILITY ---------- Large Storage Unit Improved Signal Interpreter Hacking Suite Hacking Suite Heart of Steel > --- WEAPON ----------- Enhanced Autogun Heavy Machine Gun > --- INVENTORY -------- Light Fission Core Hardened Medium Armor Plating Insulated Plating Remote Shield System Shield Improved System Restoration Module Improved System Restoration Module Enhanced Autogun Mini Assault Cannon Long-range Missile Launcher [Rating: 65] Favorites ----------- Power Enhanced Nuclear Core Engine Heavy Ion Engine Power Core Enhanced Nuclear Core Reactor Quantum Reactor Propulsion Gravmag System Treads Light Treads Leg Aluminum Leg Wheel Compact Wheel Hover Unit Gravmag System Flight Unit VTOL Module Utility Hacking Suite Device Improved Sensor Array Storage Large Storage Unit Processor Improved Signal Interpreter Hackware Hacking Suite Protection Hardened Medium Armor Plating Weapon Enhanced Autogun Energy Gun Medium Laser Energy Cannon Particle Cannon Ballistic Gun Enhanced Autogun Ballistic Cannon Mini Assault Cannon Launcher Long-range Missile Launcher Slashing Weapon Scythe Build | -11 -10 -10 -9 -8 -7 -7 -7 -7 -6 -6 -6 -6 -6 -5 -5 -5 -5 ------- Run | Yrd Mat Min Mat Mat Fac Low Low Zio Pro Fac Low Low Dat Pro Fac Was Fac Slots Evolved 10 | . . . 2 2 2 . . . . 2 . . . . 2 . . Power . | . . . . . . . . . . . . . . . . . . Propulsion 4 | . . . 2 . 1 . . . . . . . . . 1 . . Utility 6 | . . . . 2 1 . . . . 2 . . . . 1 . . Weapon . | . . . . . . . . . . . . . . . . . . Parts Attached 174 | 6 2 . 20 38 12 4 16 1 . 29 4 7 . 3 8 5 19 Power 13 | 1 . . 3 2 . . 1 . . 3 . . . . 1 1 1 Engine 5 | 1 . . 3 1 . . . . . . . . . . . . . Core 7 | . . . . 1 . . 1 . . 3 . . . . 1 . 1 Reactor 1 | . . . . . . . . . . . . . . . . 1 . Propulsion 47 | 2 . . 10 13 1 . 1 . . 6 . 2 . . 1 1 10 Treads 5 | . . . 5 . . . . . . . . . . . . . . Leg 20 | 2 . . 5 9 . . . . . . . 2 . . . . 2 Wheel 2 | . . . . . . . . . . . . . . . 1 1 . Hover 12 | . . . . 4 1 . 1 . . 6 . . . . . . . Flight 8 | . . . . . . . . . . . . . . . . . 8 Utility 55 | 1 2 . 1 7 3 2 13 . . 10 2 3 . 2 3 2 4 Device 32 | . 1 . . 3 1 2 10 . . 6 2 3 . 1 1 2 . Storage 4 | 1 . . 1 1 . . 1 . . . . . . . . . . Processor 7 | . 1 . . 1 . . . . . . . . . . 2 . 3 Hackware 7 | . . . . 2 1 . . . . 2 . . . 1 . . 1 Protection 5 | . . . . . 1 . 2 . . 2 . . . . . . . Artifact . | . . . . . . . . . . . . . . . . . . Weapon 59 | 2 . . 6 16 8 2 1 1 . 10 2 2 . 1 3 1 4 Energy Gun 4 | 1 . . 2 . . . . . . . . . . . 1 . . Energy Cannon 1 | . . . 1 . . . . . . . . . . . . . . Ballistic Gun 33 | 1 . . 3 10 3 . 1 . . 5 1 2 . . 2 1 4 Ballistic Cannon 3 | . . . . . 1 1 . . . 1 . . . . . . . Launcher 8 | . . . . 3 1 . . . . 2 1 . . 1 . . . Special Weapon . | . . . . . . . . . . . . . . . . . . Impact Weapon . | . . . . . . . . . . . . . . . . . . Slashing Weapon 10 | . . . . 3 3 1 . 1 . 2 . . . . . . . Piercing Weapon . | . . . . . . . . . . . . . . . . . . Special Melee Weapon . | . . . . . . . . . . . . . . . . . . Unidentified Prototypes 8 | . . . 2 . 2 . 1 . . 2 . . . . . 1 . Parts Lost 58 | . . . 4 10 . . 1 . . 9 1 4 . 7 . . 22 Power 4 | . . . 2 1 . . . . . . . . . 1 . . . Propulsion 28 | . . . 1 5 . . 1 . . 6 . 1 . 3 . . 11 Utility 14 | . . . . 4 . . . . . 1 . 1 . 1 . . 7 Weapon 12 | . . . 1 . . . . . . 2 1 2 . 2 . . 4 Highest Loss Streak 8 | . . . 2 4 . . 1 . . 4 1 3 . 5 . . 8 To Critical Strikes . | . . . . . . . . . . . . . . . . . . Average Slot Usage (%) 80 | . 100 100 93 92 100 100 98 100 100 80 64 58 73 66 43 51 62 Engine 2 | . 14 14 10 3 . . . . . . . . . . . . . Core 4 | . . . . 4 7 7 7 7 7 6 6 6 6 4 1 . 2 Treads 2 | . . . 17 . . . . . . . . . . . . . . Leg 11 | . 28 28 20 31 . . . . . . . 3 13 10 . . 4 Hover 11 | . . . . 1 38 38 38 38 38 19 13 8 6 5 . . . Device 6 | . 7 . . 7 6 7 8 15 15 12 6 4 6 5 5 9 3 Storage 7 | . 14 14 11 8 7 7 6 7 7 6 6 6 6 5 . . . Processor 7 | . 7 14 11 4 7 7 7 7 7 6 6 6 6 6 11 11 19 Hackware 10 | . . . . 12 15 15 11 7 7 13 13 13 13 13 17 17 13 Ballistic Gun 9 | . 14 14 11 14 8 7 15 9 7 6 4 5 13 8 2 1 8 Slashing Weapon 1 | . . . . 1 5 6 . 4 7 4 4 . . . . . . Naked Turns . | . . . . . . . . . . . . . . . . . . Heaviest Build 46 | 11 12 11 35 36 32 33 34 33 32 43 43 46 37 42 14 34 15 Greatest Support 80 | 20 20 20 80 66 43 43 43 41 41 51 22 35 35 35 16 16 40 Greatest Overweight (x) 9 | . . . 1 3 . . . . . 2 1 2 1 9 4 2 4 Average Overweight (x) . | . . . . . . . . . . . 1 1 1 . . . . Largest Inventory Capacity 15 | 8 8 8 15 15 15 15 15 15 15 15 15 15 15 15 5 5 5 Average Capacity 13 | 7 8 8 14 14 15 15 14 15 15 15 15 15 15 14 5 5 5 Most Carried 15 | 5 4 6 15 15 15 15 15 15 15 15 15 15 14 14 5 5 5 Average Carried 12 | 2 2 4 12 13 13 15 14 15 15 14 14 13 14 13 4 4 4 Final Capacity 15 | 8 8 8 15 15 15 15 15 15 15 15 15 15 15 5 5 5 5 Final Carried 15 | 3 4 6 15 14 15 15 15 15 15 15 14 14 14 5 5 5 5 Class Distribution -------------------- 53% | Hacker-Mutant 19% | Scavenger-Mutant 15% | Mutant 6% | Scavenger-Scout 3% | Hacker-Scout Dominant Class ---------------- Mutant | -10/Materials Mutant | -10/Mines Scavenger-Mutant | -9/Materials Mutant | -8/Materials Hacker-Mutant | -7/Factory Hacker-Mutant | -7/Lower Caves Hacker-Mutant | -7/Lower Caves Scavenger-Scout | -7/Zion Scavenger-Scout | -6/Proximity Caves Hacker-Mutant | -6/Factory Hacker-Mutant | -6/Lower Caves Hacker-Mutant | -6/Lower Caves Hacker-Mutant | -6/Data Miner Hacker-Mutant | -5/Proximity Caves Hacker-Mutant | -5/Factory Hacker-Mutant | -5/Waste Scavenger-Mutant | -5/Factory Resources | -11 -10 -10 -9 -8 -7 -7 -7 -7 -6 -6 -6 -6 -6 -5 -5 -5 -5 ----------- Run | Yrd Mat Min Mat Mat Fac Low Low Zio Pro Fac Low Low Dat Pro Fac Was Fac Matter Collected 5110 | 267 . 91 373 739 185 52 240 139 52 1170 200 615 . 388 142 . 457 Remotely . | . . . . . . . . . . . . . . . . . . Salvage Created 4987 | 73 . 91 1071 1043 304 65 106 . . 1190 93 246 . 86 142 . 477 Parts 259 | 8 . 2 75 69 20 . 3 . . 40 6 6 . 1 3 . 26 Haulers Intercepted 9 | . . . 4 3 2 . . . . . . . . . . . . Recyclers Shooed 9 | . . . 2 2 . . . . . 4 . . . . . . 1 Parts Field Recycled . | . . . . . . . . . . . . . . . . . . Retrieved Matter . | . . . . . . . . . . . . . . . . . . Parts Self-Destructed 25 | . . . . . . 2 3 1 . . 3 14 . 2 . . . Prevented 3 | . . . . . . 1 . . . . . 2 . . . . . Kills | -11 -10 -10 -9 -8 -7 -7 -7 -7 -6 -6 -6 -6 -6 -5 -5 -5 -5 ------- Run | Yrd Mat Min Mat Mat Fac Low Low Zio Pro Fac Low Low Dat Pro Fac Was Fac Combat Hostiles Destroyed 72 | . . 2 19 14 1 . 2 . . 12 3 4 . 2 . . 13 Guns 43 | . . 2 14 6 1 . 2 . . 5 . . . . . . 13 Cannons 5 | . . . 5 . . . . . . . . . . . . . . AOE 24 | . . . . 8 . . . . . 7 3 4 . 2 . . . Classes Destroyed 16 | 1 . 1 7 4 . . 1 . . . 1 1 . . . . . Worker 7 | . . . 2 1 2 . . . . 2 . . . . . . . Builder 4 | . . . . 3 . . . . . 1 . . . . . . . Tunneler 7 | 4 . . . 1 1 . . . . 1 . . . . . . . Hauler 9 | . . . 4 3 2 . . . . . . . . . . . . Recycler 11 | . . . 1 3 . . . . . 6 . . . . 1 . . Minesweeper 1 | . . . . . . . . . . . . 1 . . . . . Mechanic 2 | . . . . 2 . . . . . . . . . . . . . Operator 6 | . . . 2 3 1 . . . . . . . . . . . . Watcher 8 | . . . 2 4 1 . . . . 1 . . . . . . . Swarmer 29 | . . . 7 . . . . . . 7 3 4 . . . . 8 Grunt 21 | . . 2 6 8 . . . . . 2 . . . . . . 3 Duelist 1 | . . . . 1 . . . . . . . . . . . . . Sentry 11 | . . . 6 4 1 . . . . . . . . . . . . Hunter 8 | . . . . 1 . . 1 . . 2 . . . 2 . . 2 Programmer 2 | . . . . . . . 1 . . 1 . . . . . . . Packrat 3 | . . . . . . . . . . . . 3 . . . . . Samaritan 3 | . . . . . . . . . . . 1 . . 2 . . . Best Kill Streak 11 | 3 . 2 5 11 2 . 1 . . 9 3 4 . 1 1 . 5 Combat Bots Only 6 | . . 2 3 4 1 . 1 . . 6 3 4 . 1 . . 5 Max Kills in Single Turn 5 | 1 . 1 2 5 1 . 1 . . 4 3 3 . 1 1 . 1 Gunslinging 1 | . . . 1 . . . . . . . . . . . . . . Exploded 3 | . . . . 2 . . . . . 2 3 3 . 1 . . . Melee . | . . . . . . . . . . . . . . . . . . Uniques/NPCs Destroyed . | . . . . . . . . . . . . . . . . . . Combat | -11 -10 -10 -9 -8 -7 -7 -7 -7 -6 -6 -6 -6 -6 -5 -5 -5 -5 -------- Run | Yrd Mat Min Mat Mat Fac Low Low Zio Pro Fac Low Low Dat Pro Fac Was Fac Hostile Shots Fired 715 | . . 12 108 112 55 . 32 . 18 62 18 39 . 67 11 . 181 Missed 265 | . . 1 34 37 36 . 8 . 15 17 8 17 . 25 7 . 60 Damage Taken 7190 | . . 140 817 1157 121 . 360 . 26 1010 218 367 . 752 76 . 2146 Core 1862 | . . 39 104 286 23 . 24 . . 66 41 98 . 171 42 . 968 Absorbed by Shields 137 | . . . . 137 . . . . . . . . . . . . . Redirected to Shielding 77 | . . . . . 23 . 54 . . . . . . . . . . Ignored by Resistances 51 | . . . . . . . 42 . . 9 . . . . . . . Regen/Repaired (Parts) 225 | . . . . 96 . . . . . 129 . . . . . . . Core Remaining (%) 75 | 100 . 84 74 48 . . . . 93 . . . . 55 . . . Volleys Fired 350 | 7 . 6 93 49 9 2 20 . . 51 6 24 . 18 3 . 62 Largest 2 | 2 . 2 2 2 2 1 2 . . 2 1 2 . 2 1 . 2 Hottest 91 | 70 . 70 91 50 50 48 50 . . 50 43 55 . 73 25 . 51 Shots Fired 597 | 14 . 12 185 84 16 2 40 . . 72 6 29 . 28 3 . 106 Gun 500 | 14 . 12 131 71 16 . 40 . . 62 4 26 . 15 3 . 106 Cannon 59 | . . . 54 . . 2 . . . 3 . . . . . . . Launcher 38 | . . . . 13 . . . . . 7 2 3 . 13 . . . Special . | . . . . . . . . . . . . . . . . . . Kinetic 453 | 7 . 6 92 71 16 2 40 . . 65 4 26 . 15 3 . 106 Thermal 106 | 7 . 6 93 . . . . . . . . . . . . . . Explosive 38 | . . . . 13 . . . . . 7 2 3 . 13 . . . Electromagnetic . | . . . . . . . . . . . . . . . . . . Robot Hit Streak 17 | 10 . 15 16 8 12 . 7 . . 6 1 4 . 4 5 . 17 Robot Miss Streak 7 | . . 1 4 3 2 . 4 . . 5 2 2 . 2 . . 7 Penetration Max . | . . . . . . . . . . . . . . . . . . Secondary Targets 4 | . . . 2 . . . . . . 1 . . . . . . 1 Max Gunslinging Chain 1 | . . . 1 . . . . . . 1 . . . . . . 1 Shots Hit Robots 401 | 10 . 11 118 56 21 2 24 . . 49 3 17 . 18 3 . 69 Core Hits 221 | 5 . 5 41 54 9 1 5 . . 38 3 14 . 11 3 . 32 Critical Kills . | . . . . . . . . . . . . . . . . . . Critical Parts Destroyed 1 | 1 . . . . . . . . . . . . . . . . . Critical Strikes 6 | 4 . . . . . 1 . . . 1 . . . . . . . Burn 3 | 3 . . . . . . . . . . . . . . . . . Destroy 1 | 1 . . . . . . . . . . . . . . . . . Sever 2 | . . . . . . 1 . . . 1 . . . . . . . Melee Attacks 67 | . . . . 8 17 3 . 2 . 31 6 . . . . . . Impact . | . . . . . . . . . . . . . . . . . . Slashing 67 | . . . . 8 17 3 . 2 . 31 6 . . . . . . Piercing . | . . . . . . . . . . . . . . . . . . Sneak Attacks 14 | . . . . 1 6 . . . . 6 1 . . . . . . Combat Hostiles . | . . . . . . . . . . . . . . . . . . Follow-up Attacks . | . . . . . . . . . . . . . . . . . . Damage Inflicted 12268 | 112 . 125 1720 3059 713 99 431 . . 2368 348 612 . 1176 53 . 1452 Guns 5218 | 112 . 125 982 758 219 . 431 . . 598 14 315 . 167 53 . 1444 Cannons 738 | . . . 738 . . . . . . . . . . . . . . Explosions 4950 | . . . . 2157 . . . . . 1232 269 297 . 995 . . . Melee 1340 | . . . . 144 494 99 . . . 538 65 . . . . . . Ramming 22 | . . . . . . . . . . . . . . 14 . . 8 Kinetic 4656 | 26 . 49 582 758 219 . 431 . . 598 14 315 . 167 53 . 1444 Thermal 1750 | 86 . 76 1138 450 . . . . . . . . . . . . . Explosive 4368 | . . . . 1707 . . . . . 1100 269 297 . 995 . . . Electromagnetic 132 | . . . . . . . . . . 132 . . . . . . . Impact . | . . . . . . . . . . . . . . . . . . Slashing 1340 | . . . . 144 494 99 . . . 538 65 . . . . . . Piercing . | . . . . . . . . . . . . . . . . . . Highest Corruption 7 | . . . . . . . . . . . . . . . . 7 6 Average Corruption 3 | . . . . . . . . . . . . . . . . 6 2 Corruption Purged 5 | . . . . . . . . . . . . . . . . 1 4 Corruption Blocked . | . . . . . . . . . . . . . . . . . . Effects 10 | . . . . . . . . . . . . . . . . 3 7 Message Errors 3 | . . . . . . . . . . . . . . . . 1 2 Matter Fused 2 | . . . . . . . . . . . . . . . . 1 1 Heat Flow Errors 2 | . . . . . . . . . . . . . . . . 1 1 Parts Rejected 1 | . . . . . . . . . . . . . . . . . 1 Parts Fused 1 | . . . . . . . . . . . . . . . . . 1 Data Loss (major) 1 | . . . . . . . . . . . . . . . . . 1 Overload Shots . | . . . . . . . . . . . . . . . . . . Overflow Damage 676 | . . . 11 215 127 . . . . 242 78 3 . . . . . Projectiles 11 | . . . 11 . . . . . . . . . . . . . . Explosions 367 | . . . . 207 . . . . . 138 19 3 . . . . . Melee 298 | . . . . 8 127 . . . . 104 59 . . . . . . Knockbacks . | . . . . . . . . . . . . . . . . . . Impact . | . . . . . . . . . . . . . . . . . . Kinetic . | . . . . . . . . . . . . . . . . . . Secondary . | . . . . . . . . . . . . . . . . . . Self-Inflicted Damage 451 | . . . . 49 . . . . . 326 42 34 . . . . . Shots 8 | . . . . 1 . . . . . 5 1 1 . . . . . Rammed . | . . . . . . . . . . . . . . . . . . Targets Rammed 9 | . . . . . . . . . . . . . . 5 . . 4 Kicked 9 | . . . . . . . . . . . . . . 5 . . 4 Crushed . | . . . . . . . . . . . . . . . . . . Highest Temperature 213 | 50 . 184 181 28 36 8 168 . . 62 8 7 . 1 . 210 213 Average Temperature 48 | 26 . 97 54 7 14 5 61 . . 26 4 6 . 1 . 111 134 Received Heat Transfer 1211 | . . 84 177 434 24 . 12 . 12 36 72 39 . 36 21 . 264 Siege Activations . | . . . . . . . . . . . . . . . . . . Robots Corrupted . | . . . . . . . . . . . . . . . . . . Combat Hostiles . | . . . . . . . . . . . . . . . . . . Parts Fried 1 | . . . . . . . . . . 1 . . . . . . . Impact Corruptions 1 | . . . . . . . . . . . . . . 1 . . . Robots Melted . | . . . . . . . . . . . . . . . . . . Combat Hostiles . | . . . . . . . . . . . . . . . . . . Parts Melted 8 | 2 . 1 4 1 . . . . . . . . . . . . . Heat Transferred 3358 | 481 . 222 2405 250 . . . . . . . . . . . . . Parts Sabotaged . | . . . . . . . . . . . . . . . . . . Parts Stolen . | . . . . . . . . . . . . . . . . . . Parts Stripped . | . . . . . . . . . . . . . . . . . . Power Chain Reactions . | . . . . . . . . . . . . . . . . . . Alert | -11 -10 -10 -9 -8 -7 -7 -7 -7 -6 -6 -6 -6 -6 -5 -5 -5 -5 ------- Run | Yrd Mat Min Mat Mat Fac Low Low Zio Pro Fac Low Low Dat Pro Fac Was Fac Peak Influence 503 | 20 17 56 372 503 344 . . . . 412 . . . . 149 52 363 Initial 144 | . 13 6 21 144 118 . . . . 46 . . . . 54 52 36 Average 246 | 6 13 41 210 380 216 . . . . 175 . . . . 85 52 223 Maximum Alert Level 2 | . . . 1 2 1 . . . . 2 . . . . . . 1 Low Security (%) 39 | 100 100 100 47 4 41 . . . . 63 . . . . 100 100 29 Level 1 42 | . . . 52 42 58 . . . . 32 . . . . . . 70 Level 2 18 | . . . . 52 . . . . . 4 . . . . . . . Level 3 . | . . . . . . . . . . . . . . . . . . Level 4 . | . . . . . . . . . . . . . . . . . . Level 5 . | . . . . . . . . . . . . . . . . . . High Security . | . . . . . . . . . . . . . . . . . . Max Security . | . . . . . . . . . . . . . . . . . . Squads Dispatched 9 | . 1 . 2 2 1 . . . . 2 . . . . . . 1 Investigation 4 | . 1 . 1 1 . . . . . 1 . . . . . . . Extermination 2 | . . . . . . . . . . 1 . . . . . . 1 Reinforcement 3 | . . . 1 1 1 . . . . . . . . . . . . Assault . | . . . . . . . . . . . . . . . . . . Garrison . | . . . . . . . . . . . . . . . . . . Intercept . | . . . . . . . . . . . . . . . . . . Searches Triggered . | . . . . . . . . . . . . . . . . . . Construction Impeded . | . . . . . . . . . . . . . . . . . . Haulers Reinforced . | . . . . . . . . . . . . . . . . . . Active Scanning Responses . | . . . . . . . . . . . . . . . . . . Cargo Convoy Interrupts . | . . . . . . . . . . . . . . . . . . Stealth | -11 -10 -10 -9 -8 -7 -7 -7 -7 -6 -6 -6 -6 -6 -5 -5 -5 -5 --------- Run | Yrd Mat Min Mat Mat Fac Low Low Zio Pro Fac Low Low Dat Pro Fac Was Fac Distress Signals 12 | . . . 4 4 1 . . . . 2 . . . . . . 1 Communications Jammed . | . . . . . . . . . . . . . . . . . . Distress Signals . | . . . . . . . . . . . . . . . . . . Times Spotted 179 | . . 2 38 36 8 . 4 . 3 24 7 9 . 6 5 5 32 Peak Tracking Total 13 | . . 2 6 8 4 . 2 . 4 8 4 4 . 3 3 6 13 Tactical Retreats 26 | . . . 4 4 2 . 2 . 3 4 . 1 . 1 2 . 3 Traps | -11 -10 -10 -9 -8 -7 -7 -7 -7 -6 -6 -6 -6 -6 -5 -5 -5 -5 ------- Run | Yrd Mat Min Mat Mat Fac Low Low Zio Pro Fac Low Low Dat Pro Fac Was Fac Traps Triggered 6 | . 1 . . 1 1 . . . . 2 . . . . 1 . . Indirectly . | . . . . . . . . . . . . . . . . . . Trap Hack Attempts . | . . . . . . . . . . . . . . . . . . Triggered . | . . . . . . . . . . . . . . . . . . Disarmed . | . . . . . . . . . . . . . . . . . . Reprogrammed . | . . . . . . . . . . . . . . . . . . Reused . | . . . . . . . . . . . . . . . . . . Traps Extracted . | . . . . . . . . . . . . . . . . . . Installed . | . . . . . . . . . . . . . . . . . . Triggered 3 | . . . . . . 2 . . . . . 1 . . . . . Machines | -11 -10 -10 -9 -8 -7 -7 -7 -7 -6 -6 -6 -6 -6 -5 -5 -5 -5 ---------- Run | Yrd Mat Min Mat Mat Fac Low Low Zio Pro Fac Low Low Dat Pro Fac Was Fac Machines Disabled 18 | . . . 1 9 . . . 1 . 6 . . . . . . 1 Max in Single Turn 2 | . . . 1 2 . . . 1 . 2 . . . . . . 1 Garrison Access 1 | . . . . . 1 . . . . . . . . . . . . Machines Repaired . | . . . . . . . . . . . . . . . . . . Machines Dismantled . | . . . . . . . . . . . . . . . . . . Machines Sabotaged . | . . . . . . . . . . . . . . . . . . Overloaded Fab Kills . | . . . . . . . . . . . . . . . . . . Hacking | -11 -10 -10 -9 -8 -7 -7 -7 -7 -6 -6 -6 -6 -6 -5 -5 -5 -5 --------- Run | Yrd Mat Min Mat Mat Fac Low Low Zio Pro Fac Low Low Dat Pro Fac Was Fac Machines Accessed 38 | . 3 . 6 6 9 1 1 . . 7 . . 4 . . . 1 Terminals 20 | . 3 . 5 5 2 . . . . 4 . . . . . . 1 Fabricators . | . . . . . . . . . . . . . . . . . . Repair Stations 5 | . . . . 1 3 . . . . 1 . . . . . . . Recycling Units 6 | . . . 1 . 3 . . . . 2 . . . . . . . Scanalyzers . | . . . . . . . . . . . . . . . . . . Garrison Access 1 | . . . . . 1 . . . . . . . . . . . . Total Hacks 115 | . 7 . 15 18 19 1 1 . . 18 . . 32 . . . 4 Successful 76 | . 5 . 8 8 10 1 1 . . 10 . . 32 . . . 1 Failed 39 | . 2 . 7 10 9 . . . . 8 . . . . . . 3 Catastrophic 4 | . 1 . 1 . 2 . . . . . . . . . . . . Database Lockouts . | . . . . . . . . . . . . . . . . . . Manual 49 | . 5 . 11 14 8 . . . . 8 . . . . . . 3 Terminals 54 | . 7 . 12 16 3 . . . . 12 . . . . . . 4 Fabricators . | . . . . . . . . . . . . . . . . . . Repair Stations 9 | . . . . 2 5 . . . . 2 . . . . . . . Recycling Units 16 | . . . 3 . 9 . . . . 4 . . . . . . . Scanalyzers . | . . . . . . . . . . . . . . . . . . Garrison Access 2 | . . . . . 2 . . . . . . . . . . . . Terminal Hacks 43 | . 2 . 1 2 1 1 1 . . 3 . . 32 . . . . Record 11 | . . . . . . . . . . . . . 11 . . . . Part Schematic 11 | . . . . . . . . . . . . . 11 . . . . Robot Schematic 7 | . . . . . . . . . . . . . 7 . . . . Robot Analysis 1 | . 1 . . . . . . . . . . . . . . . . Prototype ID Bank 4 | . . . 1 . . . . . . . . . 3 . . . . Open Door 2 | . . . . . . 1 1 . . . . . . . . . . Branch Access Points 1 | . . . . . . . . . . 1 . . . . . . . Unreport Threat 2 | . . . . 1 . . . . . 1 . . . . . . . Recall Reinforcements 1 | . . . . . 1 . . . . . . . . . . . . Hauler Manifests 2 | . 1 . . . . . . . . 1 . . . . . . . Zone Layout 1 | . . . . 1 . . . . . . . . . . . . . Fabricator Hacks . | . . . . . . . . . . . . . . . . . . Repair Station Hacks 5 | . . . . 2 1 . . . . 2 . . . . . . . Scan Component 3 | . . . . 1 1 . . . . 1 . . . . . . . Repair 2 | . . . . 1 . . . . . 1 . . . . . . . Recycling Unit Hacks 2 | . . . 1 . 1 . . . . . . . . . . . . Retrieve Components 2 | . . . 1 . 1 . . . . . . . . . . . . Scanalyzer . | . . . . . . . . . . . . . . . . . . Garrison Access Hacks 1 | . . . . . 1 . . . . . . . . . . . . Seal Access 1 | . . . . . 1 . . . . . . . . . . . . Unauthorized Hacks 25 | . 3 . 6 4 6 . . . . 5 . . . . . . 1 Terminals 17 | . 3 . 4 4 2 . . . . 3 . . . . . . 1 Track 1 | . 1 . . . . . . . . . . . . . . . . Botnet 13 | . 2 . 3 2 2 . . . . 3 . . . . . . 1 Operators 3 | . . . 1 2 . . . . . . . . . . . . . Fabricators . | . . . . . . . . . . . . . . . . . . Repair Stations . | . . . . . . . . . . . . . . . . . . Recycling Units 8 | . . . 2 . 4 . . . . 2 . . . . . . . Reject 2 | . . . 1 . 1 . . . . . . . . . . . . Recyclers 1 | . . . . . 1 . . . . . . . . . . . . Mask 5 | . . . 1 . 2 . . . . 2 . . . . . . . Scanalyzers . | . . . . . . . . . . . . . . . . . . Garrison Access . | . . . . . . . . . . . . . . . . . . Data Cores Recovered . | . . . . . . . . . . . . . . . . . . Used . | . . . . . . . . . . . . . . . . . . Hacking Detections 28 | . 3 . 5 5 7 . . . . 7 . . . . . . 1 Full Trace Events 1 | . . . 1 . . . . . . . . . . . . . . Feedback Events . | . . . . . . . . . . . . . . . . . . Feedback Blocked . | . . . . . . . . . . . . . . . . . . Robot Schematics Acquired 10 | . . . . . . . . 3 . . . . 7 . . . . Robots Built . | . . . . . . . . . . . . . . . . . . Authchips . | . . . . . . . . . . . . . . . . . . Time . | . . . . . . . . . . . . . . . . . . Total Robot Build Rating . | . . . . . . . . . . . . . . . . . . Part Schematics Acquired 25 | . . . . . . . . 14 . . . . 11 . . . . Parts Built . | . . . . . . . . . . . . . . . . . . Authchips . | . . . . . . . . . . . . . . . . . . Time . | . . . . . . . . . . . . . . . . . . Total Part Build Rating . | . . . . . . . . . . . . . . . . . . Parts Repaired 2 | . . . . 1 . . . . . 1 . . . . . . . Time 98 | . . . . 60 . . . . . 38 . . . . . . . Parts Recycled . | . . . . . . . . . . . . . . . . . . Recycled Matter . | . . . . . . . . . . . . . . . . . . Retrieved Matter . | . . . . . . . . . . . . . . . . . . Retrieved Components 10 | . . . 10 . . . . . . . . . . . . . . Parts Scanalyzed . | . . . . . . . . . . . . . . . . . . Part Schematics Acquired . | . . . . . . . . . . . . . . . . . . Parts Damaged . | . . . . . . . . . . . . . . . . . . Bothacking | -11 -10 -10 -9 -8 -7 -7 -7 -7 -6 -6 -6 -6 -6 -5 -5 -5 -5 ------------ Run | Yrd Mat Min Mat Mat Fac Low Low Zio Pro Fac Low Low Dat Pro Fac Was Fac Used RIF Installer . | . . . . . . . . . . . . . . . . . . Robots Hacked . | . . . . . . . . . . . . . . . . . . Non-combat . | . . . . . . . . . . . . . . . . . . Combat . | . . . . . . . . . . . . . . . . . . Robot Hacks Applied . | . . . . . . . . . . . . . . . . . . Relay Couplers Released . | . . . . . . . . . . . . . . . . . . Fabnet Peak Effective % . | . . . . . . . . . . . . . . . . . . Robots Rewired . | . . . . . . . . . . . . . . . . . . Allies Hacked . | . . . . . . . . . . . . . . . . . . Hacks Repelled . | . . . . . . . . . . . . . . . . . . Allies | -11 -10 -10 -9 -8 -7 -7 -7 -7 -6 -6 -6 -6 -6 -5 -5 -5 -5 -------- Run | Yrd Mat Min Mat Mat Fac Low Low Zio Pro Fac Low Low Dat Pro Fac Was Fac Total Allies 1 | . . . . . . . . . . . . . . 1 . . . Largest Group 1 | . . . . . . . . . . . . . . 1 . . . Highest-Rated Group 96 | . . . . . . . . . . . . . . 96 . . . Highest-Rated Ally 96 | . . . . . . . . . . . . . . 96 . . . Total Orders . | . . . . . . . . . . . . . . . . . . Ally Attacks 27 | . . . . . . . . . . . . . . 27 . . . Total Damage 513 | . . . . . . . . . . . . . . 513 . . . Kills 3 | . . . . . . . . . . . . . . 3 . . . Allies Corrupted . | . . . . . . . . . . . . . . . . . . Allies Melted . | . . . . . . . . . . . . . . . . . . Intel | -11 -10 -10 -9 -8 -7 -7 -7 -7 -6 -6 -6 -6 -6 -5 -5 -5 -5 ------- Run | Yrd Mat Min Mat Mat Fac Low Low Zio Pro Fac Low Low Dat Pro Fac Was Fac Robot Analysis Total 1 | . 1 . . . . . . . . . . . . . . . . Derelict Logs Recovered 12 | . . . . . . 2 2 2 . . 3 1 . 2 . . . Drone Launches . | . . . . . . . . . . . . . . . . . . Drone Recoveries . | . . . . . . . . . . . . . . . . . . Exploration | -11 -10 -10 -9 -8 -7 -7 -7 -7 -6 -6 -6 -6 -6 -5 -5 -5 -5 ------------- Run | Yrd Mat Min Mat Mat Fac Low Low Zio Pro Fac Low Low Dat Pro Fac Was Fac Turns Passed 9870 | 72 125 42 1419 1793 420 150 541 353 146 947 622 1349 147 1044 188 77 435 Spaces Moved 8328 | 37 101 20 703 1147 731 290 905 788 293 877 460 750 78 566 182 115 285 Core 565 | 14 . . . 42 . . . . . . . . . 167 113 108 121 Treads 342 | . . . 342 . . . . . . . . . . . . . . Legs 2234 | 23 101 20 361 974 . . . . . . . 213 78 375 . . 89 Wheels 109 | . . . . . . . . . . . . . . . 69 7 33 Hover 5036 | . . . . 131 731 290 905 788 293 877 460 537 . 24 . . . Flight 42 | . . . . . . . . . . . . . . . . . 42 Fastest Speed 33 | 50 120 120 120 48 44 44 44 44 44 44 126 120 190 50 50 50 33 Average Speed 93 | 93 120 120 146 111 44 44 44 44 44 72 126 168 190 153 91 58 79 Slowest Speed 500 | 120 120 120 240 240 44 44 48 44 44 220 126 220 190 500 250 150 250 Overloaded Moves . | . . . . . . . . . . . . . . . . . . Propulsion Burnouts . | . . . . . . . . . . . . . . . . . . Robots Hopped 1 | . . . . . . . 1 . . . . . . . . . . Cave-ins Triggered . | . . . . . . . . . . . . . . . . . . Exploration Rate (%) 49 | 3 25 17 66 60 30 43 91 85 59 28 54 80 68 77 10 91 11 Regions Visited 17 Branch Regions 9 Pre-discovered Areas 7 | . . . . . . . . 4 . . 1 1 1 . . . . Known Exits Taken 11 | . . . . 1 1 1 1 1 1 1 1 1 1 1 . . . Unknown Exits Taken 4 | 1 1 1 1 . . . . . . . . . . . . . . Scrap Searched 12 | . . . . . . 2 4 3 . . . 2 . 1 . . . Spaces Dug 52 | . . . . 3 9 2 . . . 21 5 . . 12 . . . Terrain Destroyed 347 | . . . . 76 9 3 . . . 116 39 38 . 66 . . . Melee 38 | . . . . 3 9 1 . . . 20 5 . . . . . . Projectile 3 | . . . . . . 2 . . . 1 . . . . . . . AOE 306 | . . . . 73 . . . . . 95 34 38 . 66 . . . Terrain Rammed . | . . . . . . . . . . . . . . . . . . Walls Destroyed . | . . . . . . . . . . . . . . . . . . Machines Disabled . | . . . . . . . . . . . . . . . . . . Actions | -11 -10 -10 -9 -8 -7 -7 -7 -7 -6 -6 -6 -6 -6 -5 -5 -5 -5 --------- Run | Yrd Mat Min Mat Mat Fac Low Low Zio Pro Fac Low Low Dat Pro Fac Was Fac Total 9820 | 60 104 27 927 1586 792 303 1017 790 309 1095 488 815 77 705 204 125 396 Wait 689 | 5 . . 58 289 9 5 61 . 17 75 11 29 . 111 . 2 17 Move 8310 | 36 100 19 702 1146 730 289 902 787 292 876 459 749 77 565 182 114 285 Hop 1 | . . . . . . . 1 . . . . . . . . . . Pick Up 124 | 6 2 2 31 34 9 . 11 . . 13 . 4 . 1 6 1 4 Fast Attach 53 | 3 . . 6 7 1 . 4 . . 8 1 2 . 1 3 2 15 Attach 67 | 3 1 . 11 20 3 . 1 . . 9 2 5 . 1 5 3 3 Detach 6 | . . . . . . . . . . 3 1 1 . . 1 . . Swap 55 | . 1 . 3 11 8 4 11 1 . 13 1 . . 1 . . 1 Drop 89 | . . . 23 22 6 . 6 . . 16 1 1 . 2 4 3 5 Fire 350 | 7 . 6 93 49 9 2 20 . . 51 6 24 . 18 3 . 62 Melee 67 | . . . . 8 17 3 . 2 . 31 6 . . . . . . Ram . | . . . . . . . . . . . . . . . . . . Kick 9 | . . . . . . . . . . . . . . 5 . . 4 Crush . | . . . . . . . . . . . . . . . . . . Escape Stasis . | . . . . . . . . . . . . . . . . . . Rewire . | . . . . . . . . . . . . . . . . . . Trap . | . . . . . . . . . . . . . . . . . . Miscellaneous . | . . . . . . . . . . . . . . . . . . Route ------- -11/Scrapyard -10/Materials -10/Mines -9/Materials (discovered 2 exits: *Mat x2) -8/Materials (discovered 2 exits: *Fac / *Sto) -7/Factory (discovered 2 exits: *Fac / *Low) -7/Lower Caves -7/Lower Caves (discovered 2 exits: *Fac / *Zio) -7/Zion -6/Proximity Caves -6/Factory (discovered 2 exits: *Low x2) -6/Lower Caves -6/Lower Caves -6/Data Miner -5/Proximity Caves -5/Factory (discovered 2 exits: Fac / Upp) -5/Waste -5/Factory History --------- Turn | Location | Event 16 | -11/Scrapyard | Discovered new exit (range 15) 73 | -11/Scrapyard | Entered Materials 178 | -10/Materials | Discovered new exit (range 15) 198 | -10/Materials | Entered Mines 232 | -10/Mines | Discovered new exit (range 10) 240 | -10/Mines | Entered Materials 240 | -9/Materials | Evolved 2 slots: Propulsion x2 337 | -9/Materials | Build established: Mutant 847 | -9/Materials | Build established: Scavenger-Mutant 918 | -9/Materials | Discovered new exit (range 16) 1598 | -9/Materials | Discovered new exit (range 16) 1659 | -9/Materials | Entered another Materials area 1659 | -8/Materials | Evolved 2 slots: Utility x2 1749 | -8/Materials | Lost 4 parts (2n2u) 2316 | -8/Materials | Repaired Enh. Autogun 2376 | -8/Materials | Build established: Hacker-Mutant 2545 | -8/Materials | Lost 3 parts (1p1n1u) 2564 | -8/Materials | Core integrity fell below 50% 2594 | -8/Materials | Lost 3 parts (2n1u) 2791 | -8/Materials | Build established: Mutant 2980 | -8/Materials | Discovered new exit (range 16) 3100 | -8/Materials | Discovered new exit (range 10) 3250 | -8/Materials | Identified exit to Storage 3452 | -8/Materials | Identified exit to Factory 3452 | -8/Materials | Entered Factory 3452 | -7/Factory | Evolved 2 slots: Propulsion x1, Utility x1 3510 | -7/Factory | Discovered new exit (range 5) 3517 | -7/Factory | Identified exit to Factory 3770 | -7/Factory | Build established: Hacker-Mutant 3833 | -7/Factory | Discovered new exit (range 9) 3855 | -7/Factory | Identified exit to Lower Caves 3872 | -7/Factory | Entered Lower Caves 3893 | -7/Lower Caves | Identified exit to Lower Caves 3989 | -7/Lower Caves | Encountered a Warlord checkpoint 4022 | -7/Lower Caves | Entered another Lower Caves area 4266 | -7/Lower Caves | Spotted B-75 Beast 4285 | -7/Lower Caves | Learned Factory garrison access intel 4303 | -7/Lower Caves | Encountered a Warlord checkpoint 4351 | -7/Lower Caves | Found Prototype Device 4351 | -7/Lower Caves | Identified Heart of Steel 4437 | -7/Lower Caves | Discovered exit to Factory (range 8) 4510 | -7/Lower Caves | Learned Factory terminal intel 4558 | -7/Lower Caves | Discovered new exit (range 10) 4562 | -7/Lower Caves | Identified exit to Zion 4563 | -7/Lower Caves | Entered Zion 4586 | -7/Zion | Discovered new exit (range 11) 4636 | -7/Zion | Received a hallucinogenic algorithm 4644 | -7/Zion | Acquired unknown access codes intercepted by a Zionite 4745 | -7/Zion | Learned location of Warlord (-5) 4752 | -7/Zion | Given A8's code to call for help 4773 | -7/Zion | Learned 4 Factory zone layouts 4799 | -7/Zion | Given the Hacking Drone Bay 4816 | -7/Zion | Build established: Scavenger-Scout 4916 | -7/Zion | Identified exit to Proximity Caves 4916 | -7/Zion | Entered Proximity Caves 4985 | -6/Proximity Caves | Attracted the attention of an 0b10 checkpoint 5058 | -6/Proximity Caves | Discovered exit to Factory (range 8) 5062 | -6/Proximity Caves | Entered Factory 5062 | -6/Factory | Evolved 2 slots: Utility x2 5064 | -6/Factory | Loaded intel: 26 terminal locations 5065 | -6/Factory | Loaded intel: 3 garrison access locations 5275 | -6/Factory | Discovered new exit (range 8) 5278 | -6/Factory | Identified exit to Lower Caves 5369 | -6/Factory | Repaired Broken Enh. Autogun? 5399 | -6/Factory | Lost 4 parts (3n1w) 5697 | -6/Factory | Lost 4 parts (3n1u) 5917 | -6/Factory | Build established: Hacker-Mutant 6009 | -6/Factory | Entered Lower Caves 6298 | -6/Lower Caves | Identified exit to Lower Caves 6342 | -6/Lower Caves | Learned Factory terminal intel 6631 | -6/Lower Caves | Attracted the attention of an 0b10 checkpoint 6631 | -6/Lower Caves | Entered another Lower Caves area 7035 | -6/Lower Caves | Spotted B-75 Beast 7124 | -6/Lower Caves | Lost 3 parts (1n1u1w) 7560 | -6/Lower Caves | Learned location of Extension (-4) 7603 | -6/Lower Caves | Encountered a Warlord checkpoint 7657 | -6/Lower Caves | Discovered new exit (range 10) 7670 | -6/Lower Caves | Identified exit to Data Miner 7980 | -6/Lower Caves | Entered Data Miner 7980 | -6/Data Miner | Discovered new exit (range 6) 8017 | -6/Data Miner | Met Data Miner 8056 | -6/Data Miner | Learned location of Section 7 (-2) 8056 | -6/Data Miner | Acquired the access code to Warlord's prototype stash 8083 | -6/Data Miner | Received God Mode back door access code from Data Miner 8125 | -6/Data Miner | Identified exit to Proximity Caves 8127 | -6/Data Miner | Entered Proximity Caves 8724 | -5/Proximity Caves | Learned location of 1 exit from Factory 8829 | -5/Proximity Caves | Learned location of 1 exit from Factory 8986 | -5/Proximity Caves | Escorted by Enhanced Grunt 9038 | -5/Proximity Caves | Lost 5 parts (1p2n1u1w) 9051 | -5/Proximity Caves | Attracted the attention of an 0b10 checkpoint 9140 | -5/Proximity Caves | Discovered new exit (range 6) 9144 | -5/Proximity Caves | Identified exit to Factory 9171 | -5/Proximity Caves | Entered Factory 9171 | -5/Factory | Evolved 2 slots: Propulsion x1, Utility x1 9172 | -5/Factory | Identified exit to Factory 9172 | -5/Factory | Identified exit to Upper Caves 9173 | -5/Factory | Loaded intel: 26 terminal locations 9359 | -5/Factory | Sucked down chute 9359 | -5/Factory | Entered Waste 9369 | -5/Waste | Spotted C-40 Crusher 9374 | -5/Waste | EMP discharged 9377 | -5/Waste | Spotted C-40 Crusher 9382 | -5/Waste | Spotted C-40 Crusher 9382 | -5/Waste | Spotted C-40 Crusher 9382 | -5/Waste | Spotted C-40 Crusher 9418 | -5/Waste | Discovered new exit (range 22) 9431 | -5/Waste | Identified exit to Factory 9436 | -5/Waste | Entered Factory 9516 | -5/Factory | Lost 4 parts (1n2u1w) 9812 | -5/Factory | Core integrity fell below 50% 9841 | -5/Factory | Lost 8 parts (5n1u2w) 9856 | -5/Factory | Core integrity fell below 20% 9871 | -5/Factory | Destroyed by S-27 Virus with Autogun Last Messages --------------- 09799_ Dropped Flexi-carbon Leg. 09799_ Dropped Lgt. Fission Core. 09807_ P-70 Sage resets P-70 Sage, system corruption cleaned. 09808_ Targeting Computer destroyed. 09809_ The unstable cave ceiling collapses. 09810_ VTOL Module destroyed. 09814_ W-25 Informer sends out distress signal. 09826_ System corrupted: Substantial component data lost. 09831_ Acquired 45 matter. 09850_ System corrupted: Matter fused (-9). 09852_ Adv. System Shield destroyed. 09853_ Hacking Suite destroyed. 09860_ Enh. Optical Array destroyed. 09862_ Imp. Signal Interpreter destroyed. 09869_ Connecting with DSF Access... 09869_ Transmitting encrypted signal... >>\\EE9H Transmitting encrypted signal... Map ----- +----------------------------------------------------+ | """" # """"""" #????? | | # """"""" #????? | | |! # #????? | | !! " """"""" ????????? | | !! # """"""" ????????? | | # """"""" ????????? | | # """""""?????????? | | # ????????? | | # / ????????? | | ###########???????? | | # ?????????? | | # ?????????? | | # #????????? | | # """#????????? | | # """#????????? | | #!! """#????????? | | #!] ""#????????? | | ##### #!] "??????????? | | ????# # ????????????? | | ????# ###/########+#????? | | ????# s s #????? | | ????# #????? | | """ #????? | | ##### """ ##???? | | ????# """ T#???? | | ????# #### @#???? | | ????####+####??# ##???? | | ???????????????+ #????? | | ???????????????####+######????? | | ??????????????????????????????? | | ??????????????????????????????? | | ??????????????????????????????? | | ??????????????????????????????? | | ??????????????????????????????? | | ??????????????????????????????? | | ??????????????????????????????? | | ??????????????????????????????? | | ??????????????????????????????? | | ??????????????????????????????? | | ??????????????????????????????? | | ??????????????????????????????? | | ??????????????????????????????? | | ??????????????????????????????? | | ??????????????????????????????? | | ??????????????????????????????? | | ??????????????????????????????? | | ??????????????????????????????? | | ??????????????????????????????? | | ??????????????????????????????? | | ??????????????????????????????? | +----------------------------------------------------+ Best States ------------- Heat Dissipation 66 Energy Generation 18 Energy Capacity 300 Matter Stores 300 Matter Capacity 300 Sight Range 22 Robot Scan Range 16 Terrain Scan Range 16 Terrain Scan Density 10 Armor Coverage 375 Resistance: EM 15 Propulsion Shielding 66 Evasion (%) 63 Targeting Accuracy 15 Melee Accuracy 6 Recoil Reduction 4 Offensive Hacking 30 Defensive Hacking 24 Item Schematics ----------------- Drone Bay | -7/Zion | Archive Weapon Cycler | -7/Zion | Archive Spear | -7/Zion | Archive Force Field | -7/Zion | Archive Coil Gun | -7/Zion | Archive Mak. Flight Unit | -7/Zion | Archive Imp. Recalibrator | -7/Zion | Archive Tesla Rifle | -7/Zion | Archive Adv. ECM Suite | -7/Zion | Archive Imp. Trap Scanner | -7/Zion | Archive Shock Absorption System | -7/Zion | Archive Arc Thrower | -7/Zion | Archive Core Analyzer | -7/Zion | Archive Adv. Signal Interpreter | -7/Zion | Archive Cld. Nuclear Pulse Thruster | -6/Data Miner | Free Combat Drone Bay | -6/Data Miner | Free Lgt. Regenerative Plating | -6/Data Miner | Free Imp. Energy Well | -6/Data Miner | Free Plasma Sword | -6/Data Miner | Free Myomer Leg | -6/Data Miner | Free Point Defense Array | -6/Data Miner | Free Matter Neutralizer | -6/Data Miner | Free Imp. Antigrav System | -6/Data Miner | Free Adv. Force Field | -6/Data Miner | Free Q-thruster | -6/Data Miner | Free Robot Schematics ------------------ O-24 Administrator | -7/Zion | Archive Y-54 Guardian | -7/Zion | Archive D-83 Annihilator | -7/Zion | Archive E-15 Imp | -6/Data Miner | Free A-15 Conveyor | -6/Data Miner | Free M-22 Extractor | -6/Data Miner | Free G-50 Soldier | -6/Data Miner | Free B-60 Warrior | -6/Data Miner | Free M-36 Artificer | -6/Data Miner | Free Y-64 Sentinel | -6/Data Miner | Free Fabricated ------------ Nothing Alien Tech Used ----------------- None Achievements -------------- None Challenges ------------ None Game ------ Seed GodTransmissionInitializer Manual? 0 Play Time 01:36:26 Cumulative 193.6 hours Start 2024.05.24 @ 12:39:42 End 2024.05.24 @ 14:18:12 Sessions 1 Manual Loads 0 Difficulty Rogue Special Mode None Game No. 79 Rogue 65 Adventurer 14 Explorer 0 Win Type - Total 13 Types 11/0/0/1/0/0/0/0/1 Lore% 67 Gallery% 78 Achievement% 63 Wizard Run 0 Options --------- Layout 1 ASCII 0 Keyboard 0 Movement Mouse Keybinds 0 Fullscreen 1 Font 20/SmallcapsGlow Map View 50x35 Zoom Use 0% Tactical HUD 1 Map Filters NONE Filters NONE Steam 1 RUN: 6013d309-83de-4eaf-b21b-eebdf8a180cc